fUSD/lending_fUSD_20260621
["ID","MTS","AMOUNT","RATE_DAILY","PERIOD"]
[425938123,1782039062000,-500.0,0.00028219,2]
[425938119,1782039062000,-797.35,0.00028219,2]
[425938125,1782039062000,-500.0,0.00028219,2]
[425938121,1782039062000,-500.0,0.00028219,2]
[425938126,1782039062000,-617.68863685,0.00028219,2]
[425938124,1782039062000,-500.0,0.00028219,2]
[425938129,1782039062000,-576.15,0.00028219,2]
[425938193,1782039063000,-500.0,0.00028219,2]
[425938205,1782039063000,-500.0,0.00028219,2]
[425938195,1782039063000,-290.14602434,0.00028219,2]
[425938186,1782039063000,-500.0,0.00028219,2]
[425938190,1782039063000,-500.0,0.00028219,2]
[425938187,1782039063000,-615.39,0.00028219,2]
[425938192,1782039063000,-535.01,0.00028219,2]
[425938183,1782039063000,-500.0,0.00028219,2]
[425938191,1782039063000,-500.0,0.00028219,2]
[425938189,1782039063000,-500.0,0.00028219,2]
[425938203,1782039063000,-500.0,0.00028219,2]
[425938214,1782039063000,-698.97,0.00028219,2]
[425938202,1782039063000,-500.0,0.00028219,2]
[425938197,1782039063000,-500.0,0.00028219,2]
[425938199,1782039063000,-500.0,0.00028219,2]
[425938196,1782039063000,-538.61,0.00028219,2]
[425938206,1782039063000,-500.0,0.00028219,2]
[425938200,1782039063000,-500.0,0.00028219,2]
[425938201,1782039063000,-500.0,0.00028219,2]
[425938204,1782039063000,-42385.551759,0.00028219,2]
[425938216,1782039063000,-500.0,0.00028219,2]
[425938218,1782039063000,-500.0,0.00028219,2]
[425938194,1782039063000,-475.79652677,0.00028219,2]
[425938198,1782039063000,-500.0,0.00028219,2]
[425938185,1782039063000,-500.0,0.00028219,2]
[425938173,1782039063000,-500.0,0.00028219,2]
[425938184,1782039063000,-500.0,0.00028219,2]
[425938209,1782039063000,-500.0,0.00028219,2]
[425938171,1782039063000,-921.54,0.00028219,2]
[425938161,1782039063000,-500.0,0.00028219,2]
[425938163,1782039063000,-500.0,0.00028219,2]
[425938160,1782039063000,-500.0,0.00028219,2]
[425938162,1782039063000,-500.0,0.00028219,2]
[425938164,1782039063000,-679.35,0.00028219,2]
[425938165,1782039063000,-500.0,0.00028219,2]
[425938167,1782039063000,-500.0,0.00028219,2]
[425938169,1782039063000,-500.0,0.00028219,2]
[425938168,1782039063000,-828.66,0.00028219,2]
[425938166,1782039063000,-500.0,0.00028219,2]
[425938170,1782039063000,-500.0,0.00028219,2]
[425938175,1782039063000,-500.0,0.00028219,2]
[425938172,1782039063000,-500.0,0.00028219,2]
[425938179,1782039063000,-500.0,0.00028219,2]
[425938178,1782039063000,-500.0,0.00028219,2]
[425938174,1782039063000,-500.0,0.00028219,2]
[425938182,1782039063000,-500.0,0.00028219,2]
[425938177,1782039063000,-500.0,0.00028219,2]
[425938180,1782039063000,-500.0,0.00028219,2]
[425938181,1782039063000,-500.0,0.00028219,2]
[425938176,1782039063000,-500.0,0.00028219,2]
[425938188,1782039063000,-500.0,0.00028219,2]
[425938211,1782039063000,-151.0,0.00028219,7]
[425938208,1782039063000,-500.0,0.00028219,2]
[425938251,1782039063000,-500.0,0.00028219,2]
[425938237,1782039063000,-500.0,0.00028219,2]
[425938240,1782039063000,-500.0,0.00028219,2]
[425938243,1782039063000,-1185.3,0.00028219,2]
[425938246,1782039063000,-500.0,0.00028219,2]
[425938248,1782039063000,-286.97139351,0.00028219,2]
[425938250,1782039063000,-500.0,0.00028219,2]
[425938249,1782039063000,-500.0,0.00028219,2]
[425938255,1782039063000,-500.0,0.00028219,2]
[425938253,1782039063000,-500.0,0.00028219,2]
[425938247,1782039063000,-500.0,0.00028219,2]
[425938257,1782039063000,-500.0,0.00028219,2]
[425938252,1782039063000,-500.0,0.00028219,2]
[425938256,1782039063000,-500.0,0.00028219,2]
[425938254,1782039063000,-500.0,0.00028219,2]
[425938259,1782039063000,-500.0,0.00028219,2]
[425938262,1782039063000,-500.0,0.00028219,2]
[425938260,1782039063000,-500.0,0.00028219,2]
[425938261,1782039063000,-541.13,0.00028219,2]
[425938258,1782039063000,-500.0,0.00028219,2]
[425938263,1782039063000,-500.0,0.00028219,2]
[425938265,1782039063000,-500.0,0.00028219,2]
[425938212,1782039063000,-500.0,0.00028219,2]
[425938264,1782039063000,-927.04,0.00028219,2]
[425938242,1782039063000,-500.0,0.00028219,2]
[425938241,1782039063000,-500.0,0.00028219,2]
[425938239,1782039063000,-500.0,0.00028219,2]
[425938233,1782039063000,-724.45,0.00028219,2]
[425938210,1782039063000,-546.21,0.00028219,2]
[425938219,1782039063000,-500.0,0.00028219,2]
[425938217,1782039063000,-619.13888945,0.00028219,2]
[425938213,1782039063000,-500.0,0.00028219,2]
[425938215,1782039063000,-549.8908291,0.00028219,2]
[425938207,1782039063000,-500.0,0.00028219,2]
[425938222,1782039063000,-500.0,0.00028219,2]
[425938220,1782039063000,-500.0,0.00028219,2]
[425938238,1782039063000,-500.0,0.00028219,2]
[425938231,1782039063000,-500.0,0.00028219,2]
[425938221,1782039063000,-433.81147534,0.00028219,2]
[425938225,1782039063000,-155.559837,0.00028219,7]
[425938224,1782039063000,-500.0,0.00028219,2]
[425938223,1782039063000,-500.0,0.00028219,2]
[425938232,1782039063000,-685.72,0.00028219,2]
[425938230,1782039063000,-1068.75,0.00028219,2]
[425938227,1782039063000,-880.36,0.00028219,2]
[425938228,1782039063000,-500.0,0.00028219,2]
[425938229,1782039063000,-1542.04,0.00028219,2]
[425938245,1782039063000,-691.01,0.00028219,2]
[425938234,1782039063000,-500.0,0.00028219,2]
[425938244,1782039063000,-500.0,0.00028219,2]
[425938226,1782039063000,-500.0,0.00028219,2]
[425938236,1782039063000,-500.0,0.00028219,2]
[425938235,1782039063000,-325.80164562,0.00028219,2]
[425938296,1782039064000,-554.72,0.00028219,2]
[425938305,1782039064000,-500.0,0.00028219,2]
[425938301,1782039064000,-1058.86,0.00028219,2]
[425938300,1782039064000,-500.0,0.00028219,2]
[425938299,1782039064000,-500.0,0.00028219,2]
[425938295,1782039064000,-500.0,0.00028219,2]
[425938298,1782039064000,-5806.87,0.00028219,2]
[425938304,1782039064000,-500.0,0.00028219,2]
[425938303,1782039064000,-500.0,0.00028219,2]
[425938308,1782039064000,-500.0,0.00028219,2]
[425938297,1782039064000,-569.11,0.00028219,2]
[425938310,1782039064000,-547.97,0.00028219,2]
[425938317,1782039064000,-500.0,0.00028219,2]
[425938316,1782039064000,-1736.45,0.00028219,2]
[425938311,1782039064000,-582.15,0.00028219,2]
[425938309,1782039064000,-500.0,0.00028219,2]
[425938306,1782039064000,-500.0,0.00028219,2]
[425938313,1782039064000,-924.45,0.00028219,2]
[425938315,1782039064000,-9429.08,0.00028219,2]
[425938314,1782039064000,-500.0,0.00028219,2]
[425938312,1782039064000,-3521.69,0.00028219,2]
[425938327,1782039064000,-500.0,0.00028219,2]
[425938318,1782039064000,-500.0,0.00028219,2]
[425938321,1782039064000,-500.0,0.00028219,2]
[425938293,1782039064000,-500.0,0.00028219,2]
[425938307,1782039064000,-526.59,0.00028219,2]
[425938302,1782039064000,-500.0,0.00028219,2]
[425938266,1782039064000,-864.07,0.00028219,2]
[425938288,1782039064000,-500.0,0.00028219,2]
[425938270,1782039064000,-709.33,0.00028219,2]
[425938269,1782039064000,-500.0,0.00028219,2]
[425938268,1782039064000,-938.97,0.00028219,2]
[425938267,1782039064000,-500.0,0.00028219,2]
[425938271,1782039064000,-500.0,0.00028219,2]
[425938273,1782039064000,-2361.31,0.00028219,2]
[425938272,1782039064000,-932.3,0.00028219,2]
[425938275,1782039064000,-500.0,0.00028219,2]
[425938276,1782039064000,-500.0,0.00028219,2]
[425938274,1782039064000,-500.0,0.00028219,2]
[425938277,1782039064000,-500.0,0.00028219,2]
[425938278,1782039064000,-500.0,0.00028219,2]
[425938280,1782039064000,-500.0,0.00028219,2]
[425938279,1782039064000,-383.51892082,0.00028219,2]
[425938281,1782039064000,-500.0,0.00028219,2]
[425938282,1782039064000,-500.0,0.00028219,2]
[425938287,1782039064000,-500.0,0.00028219,2]
[425938285,1782039064000,-500.0,0.00028219,2]
[425938286,1782039064000,-3084.29,0.00028219,2]
[425938284,1782039064000,-500.0,0.00028219,2]
[425938283,1782039064000,-500.0,0.00028219,2]
[425938292,1782039064000,-498.37669437,0.00028219,2]
[425938291,1782039064000,-3065.88,0.00028219,2]
[425938290,1782039064000,-500.0,0.00028219,2]
[425938289,1782039064000,-503.41,0.00028219,2]
[425938294,1782039064000,-500.0,0.00028219,2]
[425938320,1782039064000,-3297.87,0.00028219,2]
[425938328,1782039064000,-500.0,0.00028219,2]
[425938322,1782039064000,-500.0,0.00028219,2]
[425938360,1782039064000,-475.71626045,0.00028219,2]
[425938361,1782039064000,-500.0,0.00028219,2]
[425938353,1782039064000,-939.54,0.00028219,2]
[425938354,1782039064000,-500.0,0.00028219,2]
[425938355,1782039064000,-848.21,0.00028219,2]
[425938359,1782039064000,-544.37,0.00028219,2]
[425938358,1782039064000,-633.06,0.00028219,2]
[425938362,1782039064000,-469.44007265,0.00028219,2]
[425938363,1782039064000,-500.0,0.00028219,2]
[425938370,1782039064000,-500.0,0.00028219,2]
[425938372,1782039064000,-500.0,0.00028219,2]
[425938373,1782039064000,-500.0,0.00028219,2]
[425938356,1782039064000,-5529.24,0.00028219,2]
[425938364,1782039064000,-662.46,0.00028219,2]
[425938366,1782039064000,-500.0,0.00028219,2]
[425938367,1782039064000,-500.0,0.00028219,2]
[425938371,1782039064000,-500.0,0.00028219,2]
[425938365,1782039064000,-500.0,0.00028219,2]
[425938369,1782039064000,-500.0,0.00028219,2]
[425938375,1782039064000,-500.0,0.00028219,2]
[425938374,1782039064000,-500.0,0.00028219,2]
[425938376,1782039064000,-500.0,0.00028219,2]
[425938377,1782039064000,-500.0,0.00028219,2]
[425938378,1782039064000,-500.0,0.00028219,2]
[425938380,1782039064000,-3353.34,0.00028219,2]
[425938379,1782039064000,-500.0,0.00028219,2]
[425938368,1782039064000,-500.0,0.00028219,2]
[425938357,1782039064000,-376.42492237,0.00028219,2]
[425938319,1782039064000,-500.0,0.00028219,2]
[425938349,1782039064000,-8116.71,0.00028219,2]
[425938351,1782039064000,-618.11,0.00028219,2]
[425938325,1782039064000,-500.0,0.00028219,2]
[425938324,1782039064000,-1099.68,0.00028219,2]
[425938326,1782039064000,-500.0,0.00028219,2]
[425938323,1782039064000,-188.70572167,0.00028219,2]
[425938340,1782039064000,-500.0,0.00028219,2]
[425938331,1782039064000,-500.0,0.00028219,2]
[425938329,1782039064000,-1465.81,0.00028219,2]
[425938338,1782039064000,-500.0,0.00028219,2]
[425938339,1782039064000,-1294.7,0.00028219,2]
[425938334,1782039064000,-500.0,0.00028219,2]
[425938336,1782039064000,-500.0,0.00028219,2]
[425938333,1782039064000,-457.47628436,0.00028219,2]
[425938335,1782039064000,-500.0,0.00028219,2]
[425938332,1782039064000,-500.0,0.00028219,2]
[425938337,1782039064000,-180.47710061,0.00028219,2]
[425938347,1782039064000,-500.0,0.00028219,2]
[425938348,1782039064000,-500.0,0.00028219,2]
[425938350,1782039064000,-500.0,0.00028219,2]
[425938342,1782039064000,-500.0,0.00028219,2]
[425938346,1782039064000,-541.30411231,0.00028219,2]
[425938345,1782039064000,-655.4,0.00028219,2]
[425938352,1782039064000,-916.98,0.00028219,2]
[425938343,1782039064000,-500.0,0.00028219,2]
[425938341,1782039064000,-500.0,0.00028219,2]
[425938330,1782039064000,-500.0,0.00028219,2]
[425938344,1782039064000,-500.0,0.00028219,2]
[425938417,1782039065000,-500.0,0.00028219,2]
[425938420,1782039065000,-500.0,0.00028219,2]
[425938419,1782039065000,-2411.52,0.00028219,2]
[425938416,1782039065000,-4322.38,0.00028219,2]
[425938418,1782039065000,-500.0,0.00028219,2]
[425938410,1782039065000,-180.92,0.00028219,2]
[425938421,1782039065000,-500.0,0.00028219,2]
[425938414,1782039065000,-500.0,0.00028219,2]
[425938415,1782039065000,-500.0,0.00028219,2]
[425938426,1782039065000,-9261.94,0.00028219,2]
[425938413,1782039065000,-939.31,0.00028219,2]
[425938425,1782039065000,-500.0,0.00028219,2]
[425938444,1782039065000,-9524.29,0.00028219,2]
[425938427,1782039065000,-500.0,0.00028219,2]
[425938424,1782039065000,-500.0,0.00028219,2]
[425938422,1782039065000,-500.0,0.00028219,2]
[425938429,1782039065000,-500.0,0.00028219,2]
[425938428,1782039065000,-500.0,0.00028219,2]
[425938430,1782039065000,-616.21,0.00028219,2]
[425938431,1782039065000,-586.9,0.00028219,2]
[425938432,1782039065000,-402.36812343,0.00028219,2]
[425938433,1782039065000,-500.0,0.00028219,2]
[425938434,1782039065000,-3694.74,0.00028219,2]
[425938442,1782039065000,-500.0,0.00028219,2]
[425938412,1782039065000,-500.0,0.00028219,2]
[425938423,1782039065000,-500.0,0.00028219,2]
[425938411,1782039065000,-1375.95,0.00028219,2]
[425938392,1782039065000,-500.0,0.00028219,2]
[425938403,1782039065000,-500.0,0.00028219,2]
[425938438,1782039065000,-500.0,0.00028219,2]
[425938382,1782039065000,-607.6,0.00028219,2]
[425938381,1782039065000,-791.83,0.00028219,2]
[425938383,1782039065000,-615.45,0.00028219,2]
[425938385,1782039065000,-500.0,0.00028219,2]
[425938387,1782039065000,-733.86,0.00028219,2]
[425938395,1782039065000,-500.0,0.00028219,2]
[425938396,1782039065000,-500.0,0.00028219,2]
[425938386,1782039065000,-500.0,0.00028219,2]
[425938394,1782039065000,-3551.18,0.00028219,2]
[425938388,1782039065000,-553.17,0.00028219,2]
[425938389,1782039065000,-500.0,0.00028219,2]
[425938406,1782039065000,-500.0,0.00028219,2]
[425938393,1782039065000,-500.0,0.00028219,2]
[425938391,1782039065000,-561.53,0.00028219,2]
[425938408,1782039065000,-500.0,0.00028219,2]
[425938398,1782039065000,-4478.36,0.00028219,2]
[425938397,1782039065000,-500.0,0.00028219,2]
[425938400,1782039065000,-500.0,0.00028219,2]
[425938409,1782039065000,-5839.56,0.00028219,2]
[425938401,1782039065000,-500.0,0.00028219,2]
[425938407,1782039065000,-500.0,0.00028219,2]
[425938399,1782039065000,-727.46,0.00028219,2]
[425938402,1782039065000,-3329.79,0.00028219,2]
[425938405,1782039065000,-8584.48,0.00028219,2]
[425938404,1782039065000,-500.0,0.00028219,2]
[425938390,1782039065000,-500.0,0.00028219,2]
[425938384,1782039065000,-500.0,0.00028219,2]
[425938443,1782039065000,-4074.66,0.00028219,2]
[425938440,1782039065000,-1286.43,0.00028219,2]
[425938466,1782039065000,-500.0,0.00028219,2]
[425938483,1782039065000,-500.0,0.00028219,2]
[425938473,1782039065000,-5588.49,0.00028219,2]
[425938472,1782039065000,-2839.5,0.00028219,2]
[425938484,1782039065000,-4329.45,0.00028219,2]
[425938476,1782039065000,-500.0,0.00028219,2]
[425938478,1782039065000,-500.0,0.00028219,2]
[425938474,1782039065000,-500.0,0.00028219,2]
[425938475,1782039065000,-500.0,0.00028219,2]
[425938480,1782039065000,-500.0,0.00028219,2]
[425938482,1782039065000,-8635.26,0.00028219,2]
[425938477,1782039065000,-632.32309354,0.00028219,2]
[425938479,1782039065000,-930.27,0.00028219,2]
[425938486,1782039065000,-7992.35,0.00028219,2]
[425938489,1782039065000,-500.0,0.00028219,2]
[425938487,1782039065000,-500.0,0.00028219,2]
[425938491,1782039065000,-2859.22,0.00028219,2]
[425938488,1782039065000,-500.0,0.00028219,2]
[425938490,1782039065000,-412.7812557,0.00028219,2]
[425938485,1782039065000,-500.0,0.00028219,2]
[425938495,1782039065000,-4573.85,0.00028219,2]
[425938494,1782039065000,-500.0,0.00028219,2]
[425938492,1782039065000,-500.0,0.00028219,2]
[425938493,1782039065000,-500.0,0.00028219,2]
[425938436,1782039065000,-500.0,0.00028219,2]
[425938460,1782039065000,-845.88,0.00028219,2]
[425938471,1782039065000,-4032.62,0.00028219,2]
[425938481,1782039065000,-12476.71,0.00028219,2]
[425938469,1782039065000,-500.0,0.00028219,2]
[425938468,1782039065000,-500.0,0.00028219,2]
[425938445,1782039065000,-1193.26,0.00028219,2]
[425938435,1782039065000,-3925.94,0.00028219,2]
[425938439,1782039065000,-500.0,0.00028219,2]
[425938441,1782039065000,-500.0,0.00028219,2]
[425938447,1782039065000,-500.0,0.00028219,2]
[425938457,1782039065000,-500.0,0.00028219,2]
[425938458,1782039065000,-3443.8,0.00028219,2]
[425938446,1782039065000,-500.0,0.00028219,2]
[425938451,1782039065000,-4111.73,0.00028219,2]
[425938448,1782039065000,-500.0,0.00028219,2]
[425938450,1782039065000,-500.0,0.00028219,2]
[425938449,1782039065000,-6185.48,0.00028219,2]
[425938437,1782039065000,-500.0,0.00028219,2]
[425938455,1782039065000,-500.0,0.00028219,2]
[425938453,1782039065000,-696.98,0.00028219,2]
[425938462,1782039065000,-500.0,0.00028219,2]
[425938470,1782039065000,-7989.76,0.00028219,2]
[425938465,1782039065000,-3059.52,0.00028219,2]
[425938463,1782039065000,-500.0,0.00028219,2]
[425938467,1782039065000,-673.72,0.00028219,2]
[425938464,1782039065000,-500.0,0.00028219,2]
[425938459,1782039065000,-500.0,0.00028219,2]
[425938454,1782039065000,-500.0,0.00028219,2]
[425938456,1782039065000,-500.0,0.00028219,2]
[425938452,1782039065000,-761.06,0.00028219,2]
[425938461,1782039065000,-500.0,0.00028219,2]
[425938528,1782039066000,-249.85468033,0.00028219,2]
[425938534,1782039066000,-6060.25,0.00028219,2]
[425938529,1782039066000,-4615.01,0.00028219,2]
[425938530,1782039066000,-500.0,0.00028219,2]
[425938533,1782039066000,-4415.71,0.00028219,2]
[425938531,1782039066000,-500.0,0.00028219,2]
[425938527,1782039066000,-8358.41,0.00028219,2]
[425938524,1782039066000,-625.47,0.00028219,2]
[425938525,1782039066000,-767.75,0.00028219,2]
[425938545,1782039066000,-509.5,0.00028219,2]
[425938532,1782039066000,-500.0,0.00028219,2]
[425938542,1782039066000,-937.4,0.00028219,2]
[425938540,1782039066000,-4367.63,0.00028219,2]
[425938541,1782039066000,-5449.18,0.00028219,2]
[425938535,1782039066000,-679.09,0.00028219,2]
[425938538,1782039066000,-500.0,0.00028219,2]
[425938539,1782039066000,-3759.49,0.00028219,2]
[425938543,1782039066000,-14378.51,0.00028219,2]
[425938544,1782039066000,-500.0,0.00028219,2]
[425938537,1782039066000,-692.04,0.00028219,2]
[425938547,1782039066000,-591.3,0.00028219,2]
[425938546,1782039066000,-500.0,0.00028219,2]
[425938548,1782039066000,-704.1,0.00028219,2]
[425938549,1782039066000,-980.9,0.00028219,2]
[425938526,1782039066000,-500.0,0.00028219,2]
[425938536,1782039066000,-500.0,0.00028219,2]
[425938514,1782039066000,-500.0,0.00028219,2]
[425938550,1782039066000,-500.0,0.00028219,2]
[425938518,1782039066000,-500.0,0.00028219,2]
[425938497,1782039066000,-500.0,0.00028219,2]
[425938498,1782039066000,-7096.82,0.00028219,2]
[425938499,1782039066000,-475.75005761,0.00028219,2]
[425938500,1782039066000,-500.0,0.00028219,2]
[425938496,1782039066000,-5769.58,0.00028219,2]
[425938502,1782039066000,-521.94,0.00028219,2]
[425938510,1782039066000,-4292.96,0.00028219,2]
[425938511,1782039066000,-3386.18,0.00028219,2]
[425938512,1782039066000,-500.0,0.00028219,2]
[425938503,1782039066000,-500.0,0.00028219,2]
[425938501,1782039066000,-626.25,0.00028219,2]
[425938507,1782039066000,-500.0,0.00028219,2]
[425938505,1782039066000,-969.34,0.00028219,2]
[425938504,1782039066000,-500.0,0.00028219,2]
[425938506,1782039066000,-576.81,0.00028219,2]
[425938509,1782039066000,-1081.7,0.00028219,2]
[425938508,1782039066000,-533.66,0.00028219,2]
[425938515,1782039066000,-579.9771124,0.00028219,2]
[425938513,1782039066000,-886.74,0.00028219,2]
[425938523,1782039066000,-500.0,0.00028219,2]
[425938520,1782039066000,-3670.41,0.00028219,2]
[425938516,1782039066000,-505.98,0.00028219,2]
[425938517,1782039066000,-500.0,0.00028219,2]
[425938522,1782039066000,-1061.83,0.00028219,2]
[425938521,1782039066000,-500.0,0.00028219,2]
[425938519,1782039066000,-500.0,0.00028219,2]
[425938555,1782039066000,-794.89,0.00028219,2]
[425938607,1782039066000,-4530.0,0.00028288,5]
[425938553,1782039066000,-500.0,0.00028219,2]
[425938583,1782039066000,-993.47,0.00028219,2]
[425938585,1782039066000,-500.0,0.00028219,2]
[425938586,1782039066000,-500.0,0.00028219,2]
[425938588,1782039066000,-500.0,0.00028219,2]
[425938584,1782039066000,-500.0,0.00028219,2]
[425938587,1782039066000,-985.05,0.00028219,2]
[425938590,1782039066000,-5761.44,0.00028219,2]
[425938589,1782039066000,-500.0,0.00028219,2]
[425938591,1782039066000,-1599.37,0.00028219,2]
[425938592,1782039066000,-500.0,0.00028219,2]
[425938593,1782039066000,-500.0,0.00028219,2]
[425938601,1782039066000,-523.99,0.00028219,2]
[425938594,1782039066000,-6506.45,0.00028219,2]
[425938600,1782039066000,-500.0,0.00028219,2]
[425938595,1782039066000,-5106.38,0.00028219,2]
[425938598,1782039066000,-4078.59,0.00028219,2]
[425938604,1782039066000,-151.0,0.00028267,2]
[425938596,1782039066000,-500.0,0.00028219,2]
[425938599,1782039066000,-3703.49,0.00028219,2]
[425938603,1782039066000,-500.0,0.00028219,2]
[425938602,1782039066000,-500.0,0.00028219,2]
[425938606,1782039066000,-190.5,0.00028281,10]
[425938605,1782039066000,-190.5,0.00028281,10]
[425938608,1782039066000,-500.0,0.00028291,2]
[425938554,1782039066000,-500.0,0.00028219,2]
[425938582,1782039066000,-3987.67,0.00028219,2]
[425938581,1782039066000,-683.91,0.00028219,2]
[425938597,1782039066000,-3138.47,0.00028219,2]
[425938579,1782039066000,-500.0,0.00028219,2]
[425938580,1782039066000,-875.1,0.00028219,2]
[425938556,1782039066000,-500.0,0.00028219,2]
[425938551,1782039066000,-5462.6,0.00028219,2]
[425938552,1782039066000,-500.0,0.00028219,2]
[425938559,1782039066000,-4058.51,0.00028219,2]
[425938560,1782039066000,-500.0,0.00028219,2]
[425938561,1782039066000,-500.0,0.00028219,2]
[425938562,1782039066000,-500.0,0.00028219,2]
[425938558,1782039066000,-5945.0,0.00028219,2]
[425938563,1782039066000,-3297.26,0.00028219,2]
[425938567,1782039066000,-500.0,0.00028219,2]
[425938564,1782039066000,-500.0,0.00028219,2]
[425938557,1782039066000,-562.14,0.00028219,2]
[425938566,1782039066000,-4800.04,0.00028219,2]
[425938565,1782039066000,-2428.94,0.00028219,2]
[425938575,1782039066000,-3902.92,0.00028219,2]
[425938576,1782039066000,-500.0,0.00028219,2]
[425938577,1782039066000,-500.0,0.00028219,2]
[425938572,1782039066000,-718.6,0.00028219,2]
[425938573,1782039066000,-500.0,0.00028219,2]
[425938571,1782039066000,-423.97810242,0.00028219,2]
[425938570,1782039066000,-500.0,0.00028219,2]
[425938568,1782039066000,-1000.0,0.00028219,2]
[425938569,1782039066000,-216.67,0.00028219,2]
[425938578,1782039066000,-500.0,0.00028219,2]
[425938574,1782039066000,-1912.81,0.00028219,2]
[425938636,1782039067000,-200.0,0.00028291,2]
[425938633,1782039067000,-200.0,0.00028291,2]
[425938639,1782039067000,-200.0,0.00028291,2]
[425938638,1782039067000,-200.0,0.00028291,2]
[425938632,1782039067000,-200.0,0.00028291,2]
[425938634,1782039067000,-200.0,0.00028291,2]
[425938637,1782039067000,-200.0,0.00028291,2]
[425938640,1782039067000,-200.0,0.00028291,2]
[425938650,1782039067000,-200.0,0.00028291,2]
[425938647,1782039067000,-200.0,0.00028291,2]
[425938644,1782039067000,-200.0,0.00028291,2]
[425938649,1782039067000,-200.0,0.00028291,2]
[425938646,1782039067000,-200.0,0.00028291,2]
[425938641,1782039067000,-200.0,0.00028291,2]
[425938642,1782039067000,-200.0,0.00028291,2]
[425938648,1782039067000,-200.0,0.00028291,2]
[425938645,1782039067000,-200.0,0.00028291,2]
[425938635,1782039067000,-200.0,0.00028291,2]
[425938652,1782039067000,-200.0,0.00028291,2]
[425938643,1782039067000,-200.0,0.00028291,2]
[425938628,1782039067000,-200.0,0.00028291,2]
[425938616,1782039067000,-500.0,0.00028291,2]
[425938630,1782039067000,-200.0,0.00028291,2]
[425938653,1782039067000,-200.0,0.00028291,2]
[425938609,1782039067000,-500.0,0.00028291,2]
[425938615,1782039067000,-500.0,0.00028291,2]
[425938611,1782039067000,-500.0,0.00028291,2]
[425938610,1782039067000,-500.0,0.00028291,2]
[425938614,1782039067000,-500.0,0.00028291,2]
[425938613,1782039067000,-500.0,0.00028291,2]
[425938612,1782039067000,-500.0,0.00028291,2]
[425938617,1782039067000,-500.0,0.00028291,2]
[425938631,1782039067000,-200.0,0.00028291,2]
[425938618,1782039067000,-500.0,0.00028291,2]
[425938620,1782039067000,-500.0,0.00028291,2]
[425938621,1782039067000,-500.0,0.00028291,2]
[425938622,1782039067000,-500.0,0.00028291,2]
[425938623,1782039067000,-500.0,0.00028291,2]
[425938624,1782039067000,-591.0,0.00028291,2]
[425938626,1782039067000,-200.0,0.00028291,2]
[425938625,1782039067000,-200.0,0.00028291,2]
[425938627,1782039067000,-200.0,0.00028291,2]
[425938629,1782039067000,-200.0,0.00028291,2]
[425938619,1782039067000,-500.0,0.00028291,2]